bitfinex/quotes_BTCUSD_20241223
["timestamp","ask_amount","ask_price","bid_price","bid_amount"]
[1734970840401,0.049,93170.0,93155.0,0.10407182]
[1734970840605,0.001,93170.0,93156.0,0.1373935]
[1734970840807,0.001,93170.0,93159.0,0.15]
[1734970841008,0.001,93170.0,93160.0,0.023]
[1734970841241,0.001,93170.0,93162.0,0.173]
[1734970841445,0.001,93170.0,93163.0,0.10398632]
[1734970841646,0.002,93170.0,93164.0,0.173]
[1734970841849,0.001,93170.0,93166.0,0.173]
[1734970842059,0.001,93170.0,93168.0,0.173]
[1734970842294,0.001,93170.0,93169.0,0.25398632]
[1734970842685,0.001,93170.0,93169.0,0.29668495]
[1734970843089,0.002,93170.0,93169.0,0.25398632]
[1734970843314,0.001,93170.0,93169.0,0.25398632]
[1734970843522,0.001,93170.0,93169.0,0.80289479]
[1734970843733,0.002,93170.0,93169.0,0.80689479]
[1734970843943,0.001,93170.0,93169.0,0.80289479]
[1734970844147,0.001,93170.0,93169.0,0.90765217]
[1734970844348,0.002,93170.0,93169.0,0.91165217]
[1734970844502,0.000171,93196.0,93171.0,0.173]
[1734970844715,0.000171,93196.0,93170.0,0.52590847]
[1734970844716,0.21464,93179.0,93173.0,0.173]
[1734970844929,0.00016047,93194.0,93175.0,0.15]
[1734970845121,0.214627,93185.0,93176.0,0.19515154]
[1734970845326,0.214627,93185.0,93177.0,0.15]
[1734970845534,0.214612,93191.0,93179.0,0.15]
[1734970845705,0.00016047,93194.0,93181.0,0.15]
[1734970845905,0.00016047,93194.0,93182.0,0.10398632]
[1734970846123,0.00016047,93194.0,93183.0,0.17539863]
[1734970846328,0.00016047,93194.0,93185.0,0.15]
[1734970846531,0.00016047,93194.0,93187.0,0.15]
[1734970846757,0.00016047,93194.0,93189.0,0.15]
[1734970846966,0.00016047,93194.0,93184.0,0.52590847]
[1734970846967,0.00116047,93194.0,93191.0,0.15]
[1734970847131,0.00116047,93194.0,93193.0,0.15]
[1734970847428,0.00116047,93194.0,93193.0,0.25398632]
[1734970847429,0.00216047,93194.0,93193.0,0.25398632]
[1734970847764,0.00116047,93194.0,93193.0,0.25398632]
[1734970848576,0.00016047,93194.0,93193.0,0.25398632]
[1734970848786,0.00016047,93194.0,93193.0,0.27698632]
[1734970849170,0.00016047,93194.0,93193.0,0.80289479]
[1734970849370,0.00016047,93194.0,93193.0,0.72789479]
[1734970849591,0.00016047,93194.0,93193.0,0.73189479]
[1734970849791,0.00116047,93194.0,93193.0,0.83588111]
[1734970850054,0.00116047,93194.0,93193.0,0.83188111]
[1734970850226,0.00116047,93194.0,93193.0,0.83888111]
[1734970850431,0.00216047,93194.0,93193.0,0.83888111]
[1734970851055,0.00016047,93194.0,93193.0,0.83488111]
[1734970851715,0.00016047,93194.0,93193.0,0.20198632]
[1734970852168,0.00016047,93194.0,93193.0,0.20598632]
[1734970852374,0.00116047,93194.0,93193.0,0.20998632]
[1734970852596,0.00116047,93194.0,93193.0,0.10798632]
[1734970852807,0.00116047,93194.0,93193.0,0.10398632]
[1734970852808,0.00016047,93194.0,93193.0,0.10398632]
[1734970853015,0.00216047,93194.0,93193.0,0.11398632]
[1734970853214,0.00216047,93194.0,93193.0,0.10998632]
[1734970853432,0.00116047,93194.0,93193.0,0.11498495]
[1734970853638,0.00216047,93194.0,93193.0,0.11898495]
[1734970853812,0.00016047,93194.0,93193.0,0.04098495]
[1734970854022,0.00016047,93194.0,93193.0,0.02998632]
[1734970854174,0.00116047,93194.0,93193.0,0.007]
[1734970854374,0.00116047,93194.0,93174.0,0.082]
[1734970854601,0.00116047,93194.0,93175.0,0.69282299]
[1734970854811,0.00116047,93194.0,93177.0,0.52590847]
[1734970855033,0.00116047,93194.0,93178.0,0.62989479]
[1734970855256,0.00116047,93194.0,93193.0,0.003]
[1734970855665,0.00016047,93194.0,93178.0,0.10398632]
[1734970855806,0.00016047,93194.0,93193.0,0.004]
[1734970856036,0.00116047,93194.0,93193.0,0.004]
[1734970856285,0.214622,93187.0,93179.0,0.0774823]
[1734970856452,0.0476,93186.0,93159.0,0.52590847]
[1734970856656,0.076,93183.0,93156.0,0.14296709]
[1734970856861,0.214675,93164.0,93156.0,0.14296709]
[1734970857067,0.214665,93169.0,93156.0,0.14296709]
[1734970857336,0.214665,93169.0,93152.0,0.19062278]
[1734970857337,0.214662,93170.0,93162.0,0.00062223]
[1734970857541,0.214662,93170.0,93162.0,0.00462223]
[1734970857940,0.214654,93173.0,93163.0,0.10398632]
[1734970858767,0.076,93183.0,93163.0,0.10398632]
[1734970858969,0.21465,93175.0,93163.0,0.1146935]
[1734970859213,0.214661,93171.0,93163.0,0.1146935]
[1734970859415,0.214652,93174.0,93163.0,0.01070718]
[1734970859639,0.214652,93174.0,93169.0,8.55e-05]
[1734970860409,0.001,93171.0,93169.0,8.55e-05]
[1734970860621,0.214646,93177.0,93169.0,8.55e-05]
[1734970862186,0.214656,93172.0,93169.0,8.55e-05]
[1734970862381,0.214656,93172.0,93169.0,0.0010855]
[1734970862587,0.429313,93172.0,93169.0,0.0010855]
[1734970862797,0.4722443,93172.0,93169.0,8.55e-05]
[1734970862941,0.429313,93172.0,93169.0,8.55e-05]
[1734970863143,0.076,93183.0,93169.0,0.0010855]
[1734970863386,0.0476,93186.0,93169.0,0.10507182]
[1734970863593,0.0476,93186.0,93170.0,0.10398632]
[1734970863798,0.001,93172.0,93171.0,0.01040718]
[1734970864423,0.001,93172.0,93171.0,0.023]
[1734970864840,0.001,93172.0,93171.0,0.12698632]
[1734970865047,0.0476,93186.0,93172.0,0.023]
[1734970865274,0.262226,93186.0,93172.0,0.023]
[1734970865528,0.262226,93186.0,93169.0,8.55e-05]
[1734970865529,0.0486,93186.0,93169.0,8.55e-05]
[1734970865744,0.214629,93184.0,93169.0,8.55e-05]
[1734970865952,0.0476,93186.0,93169.0,8.55e-05]
[1734970866162,0.214626,93185.0,93172.0,0.002]
[1734970866373,0.214626,93185.0,93173.0,0.023]
[1734970866596,0.214626,93185.0,93172.0,0.002]
[1734970866597,0.214639,93180.0,93172.0,0.002]
[1734970866806,0.0486,93186.0,93169.0,8.55e-05]
[1734970867026,0.0486,93186.0,93171.0,0.173]
[1734970867228,0.0487,93200.0,93173.0,0.173]
[1734970867431,0.21492725,93194.0,93175.0,0.023]
[1734970867633,0.003,93185.0,93175.0,0.12698632]
[1734970868041,0.003,93185.0,93177.0,0.023]
[1734970868245,0.003,93185.0,93178.0,0.10398632]
[1734970868375,0.003,93185.0,93180.0,0.023]
[1734970868578,0.003,93185.0,93184.0,0.023]
[1734970868782,0.00032025,93194.0,93184.0,0.023]
[1734970869500,0.00032025,93194.0,93182.0,0.52590847]
[1734970869745,0.00032025,93194.0,93183.0,0.10398632]
[1734970869948,0.00132025,93194.0,93183.0,0.10398632]
[1734970870179,0.00032025,93194.0,93184.0,0.06398948]
[1734970870322,0.00032025,93194.0,93185.0,0.10398632]
[1734970871170,0.00132025,93194.0,93185.0,0.10398632]
[1734970871596,0.00132025,93194.0,93188.0,0.023]
[1734970871795,0.00132025,93194.0,93189.0,0.10398632]
[1734970872001,0.00132025,93194.0,93191.0,0.173]
[1734970872200,0.00132025,93194.0,93192.0,0.10398632]
[1734970872374,0.00032025,93194.0,93192.0,0.10398632]
[1734970872583,0.00132025,93194.0,93187.0,0.15]
[1734970872742,0.00132025,93194.0,93189.0,0.15]
[1734970872945,0.00132025,93194.0,93190.0,0.15]
[1734970873169,0.00232025,93194.0,93190.0,0.15]
[1734970873394,0.00332025,93194.0,93192.0,0.005]
[1734970873591,0.00132025,93194.0,93192.0,0.005]
[1734970873971,0.00232025,93194.0,93192.0,0.005]
[1734970874399,0.00232025,93194.0,93186.0,0.45590847]
[1734970874658,0.00132025,93194.0,93187.0,0.10398632]
[1734970874861,0.00132025,93194.0,93188.0,0.05598948]
[1734970875010,0.00132025,93194.0,93190.0,0.004]
[1734970875578,0.00232025,93194.0,93187.0,0.10398632]
[1734970875787,0.00032025,93194.0,93187.0,0.10598632]
[1734970875996,0.00132025,93194.0,93187.0,0.10598632]
[1734970876190,0.00132025,93194.0,93187.0,0.10398632]
[1734970876422,0.00032025,93194.0,93187.0,0.1601758]
[1734970876623,0.00132025,93194.0,93191.0,0.023]
[1734970876784,0.00132025,93194.0,93192.0,0.18329475]
[1734970877447,0.214553,93217.0,93192.0,0.18329475]
[1734970877448,0.0454,93240.0,93195.0,0.84219122]
[1734970877677,0.22062363,93254.0,93212.0,0.023]
[1734970877831,0.00070632,93253.0,93218.0,0.15]
[1734970878035,0.00070632,93253.0,93226.0,0.45458822]
[1734970878235,0.00070632,93253.0,93230.0,0.10398632]
[1734970878452,0.00070632,93253.0,93234.0,0.173]
[1734970878652,0.00070632,93253.0,93237.0,0.173]
[1734970878853,0.00070632,93253.0,93239.0,0.173]
[1734970879080,0.00070632,93253.0,93241.0,0.173]
[1734970879278,0.00070632,93253.0,93242.0,0.10398632]
[1734970879672,0.00070632,93253.0,93243.0,0.023]
[1734970879843,0.00070632,93253.0,93244.0,0.10398632]
[1734970880063,0.00070632,93253.0,93248.0,0.173]
[1734970880267,0.00070632,93253.0,93250.0,0.173]
[1734970880572,0.00070632,93253.0,93252.0,0.173]
[1734970880700,0.00070632,93253.0,93252.0,0.27698632]
[1734970881109,0.00070632,93253.0,93245.0,0.45458822]
[1734970881335,0.00070632,93253.0,93251.0,0.09622103]
[1734970881506,0.00070632,93253.0,93252.0,0.12698632]
[1734970881710,0.00787155,93266.0,93251.0,0.09622103]
[1734970881935,0.00016046,93264.0,93251.0,0.09622103]
[1734970882117,0.001,93253.0,93251.0,0.09622103]
[1734970882453,0.00016046,93264.0,93252.0,0.02391881]
[1734970882657,0.00016046,93264.0,93251.0,0.001]
[1734970882658,0.214472,93252.0,93251.0,0.001]
[1734970882859,0.214511,93235.0,93234.0,0.09622103]
[1734970883062,0.262311,93235.0,93234.0,0.09622103]
[1734970883268,0.262311,93235.0,93190.0,0.0826]
[1734970883269,0.214523,93230.0,93229.0,0.09622103]
[1734970884287,0.21468334,93230.0,93229.0,0.09622103]
[1734970884422,0.21468334,93230.0,93221.0,0.19062278]
[1734970884423,0.42920634,93230.0,93207.0,0.45458822]
[1734970884628,0.00016034,93230.0,93209.0,0.173]
[1734970884835,0.214534,93226.0,93211.0,0.023]
[1734970885066,0.00016034,93230.0,93207.0,0.45458822]
[1734970885269,0.214544,93221.0,93208.0,0.04545882]
[1734970885981,0.214544,93221.0,93211.0,0.002]
[1734970886164,0.00116034,93230.0,93212.0,0.10398632]
[1734970886612,0.00116034,93230.0,93213.0,0.173]
[1734970886813,0.00116034,93230.0,93218.0,0.10398632]
[1734970887160,0.00116034,93230.0,93215.0,0.53398822]
[1734970887161,0.00116034,93230.0,93220.0,0.173]
[1734970887384,0.00116034,93230.0,93222.0,0.173]
[1734970887551,0.00016034,93230.0,93223.0,0.10398632]
[1734970887759,0.00016034,93230.0,93227.0,0.45458822]
[1734970887891,0.00016034,93230.0,93228.0,0.25398632]
[1734970888097,0.00016034,93230.0,93229.0,0.02289767]
[1734970888294,0.00016034,93230.0,93229.0,0.12688399]
[1734970888496,0.00016034,93230.0,93229.0,0.27688399]
[1734970888718,0.00216034,93230.0,93229.0,0.35272679]
[1734970889122,0.00087643,93230.0,93229.0,0.35272679]
[1734970889364,0.00087643,93230.0,93229.0,0.36172679]
[1734970889569,0.00187643,93230.0,93229.0,0.28672679]
[1734970889781,0.001,93230.0,93229.0,0.28672679]
[1734970890336,0.001,93230.0,93229.0,0.06088399]
[1734970890537,0.001,93230.0,93229.0,0.009]
[1734970891025,0.002,93230.0,93229.0,0.014]
[1734970891229,0.001,93230.0,93229.0,0.005]
[1734970891604,0.001,93230.0,93229.0,0.009]
[1734970891808,0.001,93230.0,93229.0,0.003]
[1734970892212,0.001,93230.0,93229.0,0.007]
[1734970892472,0.0485,93233.0,93210.0,0.60458822]
[1734970892678,0.0485,93233.0,93229.0,0.007]
[1734970892854,0.001,93230.0,93229.0,0.007]
[1734970893055,0.001,93230.0,93229.0,0.002]
[1734970893401,0.001,93230.0,93229.0,0.00190275]
[1734970894007,0.214525,93229.0,93213.0,0.023]
[1734970894203,0.214537,93224.0,93210.0,0.45512334]
[1734970894411,0.214553,93217.0,93197.0,0.38012334]
[1734970894612,0.214553,93217.0,93201.0,0.10398632]
[1734970895589,0.214537,93224.0,93201.0,0.10398632]
[1734970895590,0.429075,93224.0,93201.0,0.10398632]
[1734970895789,0.429075,93224.0,93202.0,0.08178599]
[1734970896004,0.0485,93233.0,93205.0,0.023]
[1734970896005,0.0485854,93233.0,93205.0,0.023]
[1734970896220,0.0485854,93233.0,93207.0,0.15]
[1734970896415,0.001,93217.0,93209.0,0.15]
[1734970896590,0.001,93217.0,93210.0,0.12698632]
[1734970896795,0.001,93217.0,93212.0,0.023]
[1734970896995,0.001,93217.0,93214.0,0.173]
[1734970897171,0.001,93217.0,93212.0,0.023]
[1734970897172,0.001,93217.0,93216.0,0.173]
[1734970897383,0.0485854,93233.0,93216.0,0.27698632]
[1734970897579,0.0485854,93233.0,93217.0,0.27698632]
[1734970897925,0.214518,93232.0,93218.0,0.02769863]
[1734970898126,0.0485854,93233.0,93219.0,0.10398632]
[1734970898469,0.10398632,93232.0,93210.0,0.38012334]
[1734970898671,0.0793,93231.0,93217.0,0.007]
[1734970898872,0.214538,93224.0,93217.0,0.001]
[1734970899070,0.214547,93220.0,93210.0,0.38012334]
[1734970899334,0.214547,93220.0,93219.0,0.006]
[1734970899570,0.214546,93220.0,93219.0,0.001]
[1734970899764,0.31853232,93220.0,93219.0,0.001]
[1734970900030,0.36513232,93220.0,93219.0,0.001]
[1734970900258,0.21404208,93207.0,93188.0,0.09581348]
[1734970900585,0.214589,93201.0,93188.0,0.09581348]
[1734970901010,0.295189,93201.0,93188.0,0.09581348]
[1734970901214,0.295189,93201.0,93172.0,0.09581348]
[1734970901416,0.295189,93201.0,93200.0,0.00316034]
[1734970901796,0.295189,93201.0,93200.0,0.00016034]
[1734970902000,0.295189,93201.0,93200.0,0.00316034]
[1734970902219,0.295189,93201.0,93200.0,0.00416034]
[1734970902429,0.295189,93201.0,93200.0,0.00116034]
[1734970902580,0.295189,93201.0,93200.0,0.00216034]
[1734970903445,0.29462033,93201.0,93200.0,0.00216034]
[1734970903979,0.29462033,93201.0,93200.0,0.00016034]
[1734970904190,0.29562033,93201.0,93200.0,0.00016034]
[1734970904395,0.54860665,93201.0,93200.0,0.00016034]
[1734970904596,0.214646,93177.0,93165.0,0.02123012]
[1734970904808,0.214638,93180.0,93165.0,0.02123012]
[1734970904809,0.214638,93180.0,93166.0,0.10398632]
[1734970905025,0.214638,93180.0,93166.0,0.15629484]
[1734970905198,0.214633,93183.0,93166.0,0.15629484]
[1734970905398,0.214644,93178.0,93166.0,0.15629484]
[1734970905639,0.1,93195.0,93166.0,0.05230852]
[1734970905848,0.1,93195.0,93165.0,0.00014925]
[1734970905849,0.296665,93168.0,93165.0,0.00014925]
[1734970906054,0.51133,93168.0,93166.0,0.007]
[1734970906472,0.10398632,93167.0,93166.0,0.007]
[1734970906966,0.1,93164.0,93163.0,8.55e-05]
[1734970907133,0.45291651,93164.0,93163.0,8.55e-05]
[1734970907570,0.45291651,93164.0,93162.0,1e-06]
[1734970907571,0.46360719,93163.0,93162.0,1e-06]
[1734970907750,0.66759351,93163.0,93162.0,1e-06]
[1734970907949,0.71389351,93163.0,93162.0,1e-06]
[1734970908157,0.314693,93156.0,93155.0,8.55e-05]
[1734970908346,0.56867932,93156.0,93155.0,8.55e-05]
[1734970908758,0.66760951,93156.0,93155.0,8.55e-05]
[1734970909562,0.214731,93140.0,93129.0,0.00053723]
[1734970909719,0.214731,93140.0,93130.0,0.01634208]
[1734970909925,0.214707,93150.0,93131.0,0.00053746]
[1734970910142,0.2147,93153.0,93132.0,0.10398632]
[1734970910346,0.2147,93153.0,93133.0,0.01287112]
[1734970910547,0.214695,93156.0,93134.0,0.10398632]
[1734970910840,0.214695,93156.0,93135.0,0.00053704]
[1734970911007,0.002,93140.0,93136.0,0.10398632]
[1734970911223,0.002,93140.0,93137.0,0.03926394]
[1734970911434,0.002,93140.0,93139.0,0.023]
[1734970911633,0.002,93140.0,93139.0,0.12752329]
[1734970911809,0.15,93181.0,93139.0,0.12752329]
[1734970911986,0.15,93181.0,93140.0,0.11841832]
[1734970911987,0.214694,93156.0,93140.0,0.11841832]
[1734970912194,0.214695,93155.0,93141.0,0.00053694]
[1734970912400,0.214665,93169.0,93143.0,0.023]
[1734970912653,0.214658,93172.0,93145.0,0.023]
[1734970912839,0.214679,93162.0,93146.0,0.10452302]
[1734970913051,0.19893019,93176.0,93146.0,0.10452302]
[1734970913052,0.31357919,93176.0,93146.0,0.10452302]
[1734970913261,0.214672,93166.0,93146.0,0.10452302]
[1734970914033,0.001,93156.0,93147.0,0.38171702]
[1734970914235,0.001,93156.0,93148.0,0.10398632]
[1734970914415,0.001,93166.0,93148.0,0.05252293]
[1734970914611,0.002,93166.0,93148.0,0.05252293]
[1734970914992,0.001,93166.0,93148.0,0.05252293]
[1734970915202,0.001,93166.0,93149.0,0.05916122]
[1734970915367,0.001,93166.0,93149.0,0.10398632]
[1734970915582,0.214675,93164.0,93149.0,0.10398632]
[1734970915750,0.214659,93171.0,93147.0,0.001]
[1734970915956,0.214682,93161.0,93147.0,0.001]
[1734970916154,0.214673,93165.0,93148.0,0.0509717]
[1734970916513,0.214659,93171.0,93148.0,0.0509717]
[1734970916514,0.429318,93171.0,93148.0,0.0509717]
[1734970916726,0.21567,93166.0,93148.0,0.0509717]
[1734970916921,0.216672,93166.0,93149.0,0.10398632]
[1734970917351,0.215672,93166.0,93149.0,0.10398632]
[1734970917557,0.214672,93165.0,93149.0,0.10398632]
[1734970917684,0.215672,93165.0,93149.0,0.10398632]
[1734970917887,0.214692,93157.0,93145.0,0.15]
[1734970918095,0.214692,93157.0,93145.0,0.2023149]
[1734970918801,0.214692,93157.0,93149.0,0.001]
[1734970919002,0.214667,93168.0,93149.0,0.001]
[1734970919393,0.214659,93171.0,93145.0,0.0523149]
[1734970919606,0.214705,93151.0,93149.0,8.55e-05]
[1734970919810,0.31363519,93151.0,93149.0,8.55e-05]
[1734970920020,0.24871651,93150.0,93149.0,8.55e-05]
[1734970920227,0.49871651,93150.0,93149.0,8.55e-05]
[1734970921255,0.50371651,93150.0,93149.0,8.55e-05]
[1734970921561,0.50671651,93150.0,93149.0,8.55e-05]
[1734970921929,0.50171651,93150.0,93149.0,8.55e-05]
[1734970922129,0.50571651,93150.0,93149.0,8.55e-05]
[1734970922842,0.50271651,93150.0,93149.0,8.55e-05]
[1734970923069,0.50471651,93150.0,93149.0,8.55e-05]
[1734970923193,0.40471651,93150.0,93149.0,8.55e-05]
[1734970923388,0.50071651,93150.0,93149.0,8.55e-05]
[1734970923798,0.50671651,93150.0,93149.0,8.55e-05]
[1734970924044,0.1978,93150.0,93149.0,8.55e-05]
[1734970924382,0.006,93150.0,93149.0,8.55e-05]
[1734970924508,0.006,93150.0,93130.0,0.35871702]
[1734970924709,0.006,93150.0,93131.0,0.15630672]
[1734970925146,0.006,93150.0,93142.0,0.00106981]
[1734970925147,0.002,93150.0,93142.0,0.00106981]
[1734970925359,0.006,93150.0,93144.0,0.15]
[1734970925560,0.006,93150.0,93145.0,0.10398632]
[1734970925760,0.004,93150.0,93145.0,0.10398632]
[1734970925967,0.004,93150.0,93146.0,0.01050561]
[1734970926146,0.006,93150.0,93147.0,0.10398632]
[1734970926558,0.000171,93166.0,93147.0,0.10398632]
[1734970926769,0.214682,93161.0,93147.0,0.10398632]
[1734970926970,0.214701,93153.0,93145.0,0.002]
[1734970927232,0.214694,93156.0,93145.0,0.002]
[1734970927393,0.000171,93166.0,93134.0,0.15]
[1734970927592,0.001,93150.0,93135.0,0.17738884]
[1734970927803,0.214696,93155.0,93135.0,0.17738884]
[1734970927997,0.001,93153.0,93145.0,0.001]
[1734970928422,0.001,93153.0,93135.0,0.17738884]
[1734970928630,0.001,93153.0,93136.0,0.35871702]
[1734970928833,0.001,93153.0,93137.0,0.14737468]
[1734970929204,0.001,93153.0,93137.0,0.10398632]
[1734970929407,0.001,93153.0,93127.0,0.09568434]
[1734970929408,0.0461,93147.0,93127.0,0.09568434]
[1734970929609,0.214734,93139.0,93127.0,0.09568434]
[1734970930034,0.0461,93147.0,93127.0,0.09568434]
[1734970930273,0.42947,93138.0,93127.0,0.09568434]
[1734970930504,0.214735,93138.0,93127.0,0.09568434]
[1734970930685,0.09993019,93139.0,93126.0,0.35938814]
[1734970930891,0.001,93139.0,93126.0,0.00067112]
[1734970931087,0.09893019,93144.0,93129.0,0.0025336]
[1734970931088,0.31365119,93144.0,93129.0,0.0025336]
[1734970931304,0.214721,93144.0,93130.0,0.01654172]
[1734970931739,0.0461,93147.0,93130.0,0.01654172]
[1734970931950,0.001,93139.0,93129.0,0.0025336]
[1734970932639,0.001,93139.0,93129.0,0.0006191]
[1734970932835,0.001,93139.0,93129.0,0.0036191]
[1734970933245,0.214729,93141.0,93129.0,0.0006191]
[1734970934187,0.214719,93145.0,93129.0,0.0006191]
[1734970934312,0.214719,93145.0,93130.0,0.01635027]
[1734970934545,0.429438,93145.0,93130.0,0.01635027]
[1734970934775,0.214719,93145.0,93130.0,0.01635027]
[1734970935076,0.0461,93147.0,93131.0,0.10398632]
[1734970935596,0.214716,93146.0,93131.0,0.10398632]
[1734970935805,0.0461,93147.0,93131.0,0.10398632]
[1734970935998,0.214733,93139.0,93130.0,0.01635027]
[1734970936199,0.09893019,93145.0,93129.0,0.0016191]
[1734970936417,0.0461,93147.0,93129.0,0.0016191]
[1734970936418,0.09893019,93144.0,93129.0,0.0016191]
[1734970936625,0.214719,93145.0,93129.0,0.0016191]
[1734970936827,0.214719,93145.0,93130.0,0.01645026]
[1734970937378,0.0461,93147.0,93130.0,0.01645026]
[1734970937577,0.000171,93150.0,93131.0,0.15]
[1734970937758,0.000171,93150.0,93132.0,0.10398632]
[1734970937999,0.000171,93150.0,93133.0,0.18534966]
[1734970938226,0.000171,93150.0,93135.0,0.15]
[1734970938429,0.000171,93150.0,93136.0,0.10398632]
[1734970939456,0.000171,93150.0,93142.0,0.00106981]
[1734970939660,0.000171,93150.0,93139.0,0.15]
[1734970939661,0.000171,93150.0,93145.0,0.023]
[1734970939882,0.000171,93150.0,93146.0,0.16086513]
[1734970940243,0.001171,93150.0,93146.0,0.16086513]
[1734970940439,0.000171,93150.0,93136.0,0.09868434]
[1734970940656,0.000171,93150.0,93139.0,0.10398632]
[1734970940861,0.001171,93150.0,93142.0,0.001]
[1734970941040,0.001171,93150.0,93142.0,0.10398632]
[1734970941336,0.002171,93150.0,93146.0,0.005]
[1734970941551,0.002171,93150.0,93147.0,0.10398632]
[1734970941749,0.002171,93150.0,93149.0,0.48677315]
[1734970941942,0.002171,93150.0,93149.0,0.56757315]
[1734970942142,0.002171,93150.0,93149.0,0.90181418]
[1734970942447,0.002171,93150.0,93149.0,0.78744437]
[1734970942646,0.000171,93150.0,93149.0,0.54350334]
[1734970943067,0.000171,93150.0,93149.0,0.89884423]
[1734970943068,0.001171,93150.0,93149.0,0.89884423]
[1734970943268,0.000171,93166.0,93149.0,0.89784423]
[1734970943468,0.001,93150.0,93149.0,0.90484423]
[1734970943669,0.002,93150.0,93149.0,0.99323552]
[1734970943908,0.001,93150.0,93149.0,1.17835181]
[1734970944092,0.002,93150.0,93149.0,1.17935181]
[1734970944295,0.003,93150.0,93149.0,1.18535181]
[1734970944512,0.003,93150.0,93149.0,1.11035181]
[1734970944822,0.003,93150.0,93149.0,0.94216052]
[1734970945006,0.003,93150.0,93149.0,0.55445718]
[1734970945306,0.003,93150.0,93149.0,0.60314578]
[1734970945481,0.2147,93153.0,93149.0,0.59514578]
[1734970945693,0.001171,93150.0,93149.0,0.60414578]
[1734970945872,0.002171,93150.0,93149.0,0.60414578]
[1734970946375,0.002171,93150.0,93149.0,0.004]
[1734970946626,0.000171,93150.0,93146.0,0.28371702]
[1734970946829,0.214879,93150.0,93146.0,0.28371702]
[1734970947124,0.17570355,93155.0,93149.0,0.004]
[1734970947543,0.001,93150.0,93149.0,0.007]
[1734970948114,0.001,93150.0,93149.0,0.03175947]
[1734970948319,0.001,93150.0,93149.0,0.007]
[1734970948516,0.001,93150.0,93148.0,0.09623786]
[1734970948722,0.429411,93151.0,93148.0,0.09623786]
[1734970948920,0.214709,93149.0,93146.0,0.004]
[1734970949286,0.1,93146.0,93145.0,0.09623786]
[1734970949440,0.41364619,93146.0,93145.0,0.02123786]
[1734970950436,0.41564619,93146.0,93145.0,0.02123786]
[1734970950692,0.41564619,93146.0,93128.0,0.14455679]
[1734970950693,0.214738,93137.0,93128.0,0.14455679]
[1734970952113,0.214738,93137.0,93128.0,0.0002]
[1734970952317,0.214751,93131.0,93129.0,0.0016191]
[1734970952903,0.214751,93131.0,93129.0,0.0036191]
[1734970953121,0.1,93131.0,93129.0,0.0036191]
[1734970953332,0.0786,93140.0,93129.0,0.0006191]
[1734970953512,0.214732,93139.0,93129.0,0.0036191]
[1734970953962,0.314729,93141.0,93129.0,0.0036191]
[1734970954140,0.31472,93145.0,93130.0,0.01665027]
[1734970954444,0.21472,93145.0,93125.0,0.10815292]
[1734970954639,0.21525422,93145.0,93128.0,0.10398632]
[1734970954876,0.42997422,93145.0,93129.0,0.02121392]
[1734970955077,0.21525422,93145.0,93129.0,0.02421392]
[1734970955264,0.31525422,93145.0,93129.0,0.02221392]
[1734970955441,0.31525422,93145.0,93129.0,0.02121392]
[1734970955636,0.31525322,93145.0,93129.0,0.02121392]
[1734970955867,0.214729,93141.0,93128.0,0.10398632]
[1734970956081,0.214732,93140.0,93129.0,0.14435679]
[1734970956246,0.214746,93133.0,93129.0,0.14435679]
[1734970957151,0.00053422,93145.0,93130.0,0.10398632]
[1734970958336,0.00053422,93145.0,93131.0,0.14435679]
[1734970958610,0.00053422,93145.0,93132.0,0.10398632]
[1734970958880,0.00053422,93145.0,93133.0,0.28371702]
[1734970959129,0.00053422,93145.0,93134.0,0.10398632]
[1734970959376,0.00053422,93145.0,93134.0,0.08240088]
[1734970959617,0.00053422,93145.0,93136.0,0.30671702]
[1734970959858,0.00053422,93145.0,93138.0,0.023]
[1734970960113,0.00053422,93145.0,93139.0,0.10398632]
[1734970960597,0.00053422,93145.0,93139.0,0.1240807]
[1734970960832,0.00053422,93145.0,93140.0,0.05985546]
[1734970961080,0.00053422,93145.0,93142.0,0.19247572]
[1734970961310,0.00053422,93145.0,93143.0,0.10398632]
[1734970961566,0.00153422,93145.0,93143.0,0.10398632]
[1734970962055,0.00053422,93145.0,93143.0,0.10398632]
[1734970962286,0.00153422,93145.0,93144.0,0.39522349]
[1734970962547,0.00153422,93145.0,93144.0,0.49920981]
[1734970964528,0.00153422,93145.0,93144.0,0.73092683]
[1734970965058,0.00253422,93145.0,93144.0,0.73692683]
[1734970965306,0.00253422,93145.0,93144.0,0.63002514]
[1734970966205,0.00253422,93145.0,93144.0,0.60994051]
[1734970966429,0.00253422,93145.0,93144.0,0.28971702]
[1734970967438,0.00153422,93145.0,93144.0,0.28371702]
[1734970967734,0.00153422,93145.0,93144.0,0.003]
[1734970968114,0.00053422,93145.0,93144.0,0.003]
[1734970968325,0.00153422,93145.0,93141.0,0.09642841]
[1734970968543,0.00153422,93145.0,93144.0,0.004]
[1734970968900,0.00253422,93145.0,93144.0,0.004]
[1734970969104,0.00253422,93145.0,93140.0,0.09642841]
[1734970969359,0.00053422,93145.0,93144.0,8.55e-05]
[1734970969566,0.00153422,93145.0,93140.0,0.12550023]
[1734970969818,0.00153422,93145.0,93137.0,0.42835963]
[1734970969819,0.00053422,93145.0,93142.0,0.02151391]
[1734970970007,0.00053422,93145.0,93143.0,0.10398632]
[1734970970620,0.00053422,93145.0,93143.0,0.38770334]
[1734970971045,0.00053422,93145.0,93144.0,0.14464261]
[1734970971236,0.00153422,93145.0,93144.0,0.24862893]
[1734970971486,0.00253422,93145.0,93144.0,0.24862893]
[1734970971667,0.00253422,93145.0,93144.0,0.14464261]
[1734970971868,0.00153422,93145.0,93144.0,0.14464261]
[1734970972083,0.00153422,93145.0,93143.0,0.42835963]
[1734970972240,0.00153422,93145.0,93144.0,0.005]
[1734970972407,0.00253422,93145.0,93144.0,0.005]
[1734970973197,0.00353422,93145.0,93144.0,0.10898632]
[1734970973545,0.00253422,93145.0,93144.0,0.38770334]
[1734970974109,0.00353422,93145.0,93144.0,0.38770334]
[1734970974478,0.00353422,93145.0,93144.0,0.28371702]
[1734970974479,0.00253422,93145.0,93144.0,0.28371702]